bitfinex/quotes_SOLUSD_20230401
["timestamp","ask_amount","ask_price","bid_price","bid_amount"]
[1680381431017,10.0,21.119,21.107,17.0]
[1680381431717,110.6474,21.12,21.107,17.0]
[1680381432503,137.3574,21.12,21.108,10.0]
[1680381432796,137.3574,21.12,21.109,17.0]
[1680381433123,137.3574,21.12,21.108,10.0]
[1680381433313,137.3574,21.12,21.106,10.0]
[1680381433511,137.3574,21.12,21.107,17.0]
[1680381433819,10.0,21.119,21.107,17.0]
[1680381435224,10.0,21.119,21.104,10.0]
[1680381435525,10.0,21.119,21.105,17.0]
[1680381436726,10.0,21.119,21.104,10.0]
[1680381437521,137.3574,21.12,21.104,10.0]
[1680381437725,137.3574,21.12,21.106,10.0]
[1680381437903,10.0,21.118,21.106,10.0]
[1680381438622,117.6405,21.119,21.106,10.0]
[1680381438805,117.6405,21.119,21.108,10.0]
[1680381439129,117.6405,21.119,21.106,10.0]
[1680381439333,117.6405,21.119,21.107,17.0]
[1680381439628,10.0,21.118,21.106,10.0]
[1680381439813,10.0,21.118,21.104,10.0]
[1680381440320,10.0,21.118,21.105,17.0]
[1680381440525,10.0,21.118,21.106,10.0]
[1680381443724,10.0,21.118,21.101,10.0]
[1680381443909,26.71,21.11,21.097,10.0]
[1680381444105,111.5044,21.109,21.095,118.0118]
[1680381444711,10.0,21.108,21.095,10.0]
[1680381445616,10.0,21.108,21.094,18.955516]
[1680381448016,111.5044,21.109,21.094,18.955516]
[1680381448420,111.5044,21.109,21.095,17.0]
[1680381448614,111.5044,21.109,21.096,10.0]
[1680381448821,111.5044,21.109,21.094,18.955516]
[1680381449021,113.535,21.108,21.094,18.955516]
[1680381449523,10.0,21.107,21.094,18.955516]
[1680381455933,26.46,21.1,21.094,18.955516]
[1680381456527,10.0,21.099,21.094,18.955516]
[1680381457130,10.0,21.099,21.084,10.0]
[1680381457329,17.16059946,21.099,21.081,132.94915664]
[1680381457534,7.16059946,21.099,21.084,10.0]
[1680381458241,10.0,21.098,21.084,10.0]
[1680381458434,27.0,21.098,21.077,10.0]
[1680381458645,34.16059946,21.098,21.078,20.0]
[1680381458828,34.16059946,21.098,21.079,10.0]
[1680381459028,23.702,21.096,21.079,10.0]
[1680381459234,26.62,21.09,21.079,10.0]
[1680381460245,26.62,21.09,21.079,10.0]
[1680381461149,26.62,21.09,21.08,17.0]
[1680381461347,26.62,21.09,21.081,10.0]
[1680381462343,10.0,21.095,21.081,10.0]
[1680381462550,20.0,21.094,21.081,10.0]
[1680381462754,20.0,21.094,21.083,10.0]
[1680381464350,27.16059946,21.094,21.081,10.0]
[1680381464655,27.16059946,21.094,21.082,17.0]
[1680381465048,27.16059946,21.094,21.081,10.0]
[1680381465444,27.16059946,21.094,21.079,10.0]
[1680381465647,17.0,21.093,21.079,10.0]
[1680381465853,10.0,21.091,21.079,10.0]
[1680381466354,10.0,21.091,21.066,98.48746713]
[1680381466554,10.0,21.091,21.078,17.0]
[1680381467858,10.0,21.091,21.066,98.48746713]
[1680381468357,10.0,21.091,21.078,17.0]
[1680381470041,27.0,21.093,21.078,17.0]
[1680381470241,20.0,21.092,21.079,10.0]
[1680381470441,10.0,21.091,21.079,10.0]
[1680381470656,20.0,21.092,21.079,10.0]
[1680381471352,10.0,21.091,21.078,17.0]
[1680381472367,10.0,21.091,21.066,98.48746713]
[1680381472859,20.0,21.092,21.079,10.0]
[1680381474257,20.0,21.092,21.079,36.71]
[1680381475956,17.0,21.091,21.079,26.71]
[1680381476264,10.0,21.09,21.079,26.71]
[1680381476973,50.11,21.09,21.079,26.71]
[1680381477254,57.27059946,21.09,21.079,26.71]
[1680381477459,17.0,21.089,21.079,26.71]
[1680381477644,47.27059946,21.09,21.079,26.71]
[1680381478261,10.0,21.089,21.079,26.71]
[1680381480966,10.0,21.089,21.079,21.21]
[1680381481750,57.27059946,21.09,21.079,21.21]
[1680381482861,10.0,21.089,21.079,21.21]
[1680381486163,40.11,21.09,21.08,10.0]
[1680381486352,27.16059946,21.092,21.081,17.0]
[1680381487048,20.0,21.092,21.082,10.0]
[1680381487250,20.0,21.092,21.083,17.0]
[1680381487453,20.0,21.091,21.083,17.0]
[1680381487853,20.0,21.094,21.083,17.0]
[1680381488056,20.0,21.094,21.084,10.0]
[1680381488251,110.9086,21.098,21.084,10.0]
[1680381488467,110.9086,21.098,21.085,17.0]
[1680381488770,108.763,21.104,21.085,17.0]
[1680381488956,20.0,21.103,21.085,17.0]
[1680381489163,10.0,21.102,21.086,10.0]
[1680381489353,20.0,21.101,21.086,10.0]
[1680381489553,20.0,21.103,21.087,17.0]
[1680381490059,18.975265,21.102,21.088,10.0]
[1680381490262,18.975265,21.102,21.089,17.0]
[1680381490866,18.975265,21.102,21.09,10.0]
[1680381491070,18.975265,21.102,21.092,10.0]
[1680381491453,23.67,21.124,21.093,76.4926252]
[1680381491775,117.028,21.124,21.094,39.4926252]
[1680381491981,117.028,21.124,21.097,23.699]
[1680381492164,10.0,21.123,21.098,30.0]
[1680381492369,10.0,21.123,21.099,17.0]
[1680381492572,20.0,21.122,21.1,20.0]
[1680381492871,10.0,21.121,21.102,10.0]
[1680381493059,10.0,21.121,21.104,10.0]
[1680381493262,108.3764,21.12,21.104,10.0]
[1680381493577,10.0,21.119,21.105,17.0]
[1680381494672,10.0,21.119,21.106,10.0]
[1680381494870,10.0,21.119,21.107,17.0]
[1680381495070,10.0,21.119,21.104,10.0]
[1680381495272,10.0,21.119,21.105,17.0]
[1680381499273,17.0,21.118,21.103,114.7482]
[1680381500177,10.0,21.117,21.103,114.7482]
[1680381500382,17.0,21.116,21.103,114.7482]
[1680381500564,17.0,21.116,21.098,111.9775]
[1680381500879,20.0,21.115,21.098,111.9775]
[1680381501070,10.0,21.114,21.099,10.0]
[1680381501376,37.0,21.113,21.098,111.9775]
[1680381501575,10.0,21.112,21.099,10.0]
[1680381501983,20.0,21.111,21.099,10.0]
[1680381502478,80.31,21.12,21.099,10.0]
[1680381502661,111.2344,21.132,21.11,39.79]
[1680381502864,111.2344,21.132,21.112,10.0]
[1680381503088,10.0,21.13,21.113,17.0]
[1680381503464,10.0,21.13,21.114,10.0]
[1680381503979,50.18,21.13,21.112,10.0]
[1680381504371,50.18,21.13,21.111,10.0]
[1680381504372,17.0,21.129,21.108,7.16059946]
[1680381504678,10.0,21.127,21.104,10.0]
[1680381504873,10.0,21.125,21.104,10.0]
[1680381505066,10.0,21.123,21.104,10.0]
[1680381505263,20.0,21.122,21.104,10.0]
[1680381505481,37.0,21.122,21.104,10.0]
[1680381505681,37.0,21.122,21.106,10.0]
[1680381506075,10.0,21.121,21.106,10.0]
[1680381506279,17.0,21.12,21.106,10.0]
[1680381506487,10.0,21.121,21.106,10.0]
[1680381507385,108.0154,21.12,21.106,10.0]
[1680381508892,10.0,21.119,21.106,10.0]
[1680381509971,108.0154,21.12,21.106,10.0]
[1680381512392,108.0154,21.12,21.107,17.0]
[1680381512689,108.0154,21.12,21.108,10.0]
[1680381512891,108.0154,21.12,21.109,17.0]
[1680381513181,108.0154,21.12,21.11,10.0]
[1680381513496,108.0154,21.12,21.111,17.0]
[1680381514671,20.0,21.122,21.111,17.0]
[1680381514987,10.0,21.128,21.111,17.0]
[1680381515290,10.0,21.126,21.111,17.0]
[1680381515487,20.0,21.125,21.111,17.0]
[1680381515688,20.0,21.125,21.112,10.0]
[1680381516277,20.0,21.125,21.113,17.0]
[1680381519597,10.0,21.124,21.11,10.0]
[1680381519893,20.0,21.123,21.112,10.0]
[1680381520499,10.0,21.124,21.112,10.0]
[1680381520702,20.0,21.123,21.112,10.0]
[1680381521699,20.0,21.123,21.11,10.0]
[1680381524394,90.26,21.13,21.111,20.0]
[1680381524600,10.0,21.128,21.113,10.0]
[1680381527213,10.0,21.128,21.111,20.0]
[1680381527402,17.0,21.127,21.111,20.0]
[1680381527704,10.0,21.126,21.111,20.0]
[1680381528087,10.0,21.126,21.112,10.0]
[1680381528906,17.0,21.127,21.112,10.0]
[1680381531386,10.0,21.126,21.112,10.0]
[1680381531787,17.0,21.125,21.111,20.0]
[1680381531987,17.0,21.125,21.112,30.0]
[1680381532608,17.0,21.125,21.113,10.0]
[1680381534206,10.0,21.128,21.113,10.0]
[1680381534409,17.0,21.127,21.113,10.0]
[1680381537015,17.0,21.127,21.111,20.0]
[1680381537308,17.0,21.127,21.112,30.0]
[1680381537502,10.0,21.126,21.112,30.0]
[1680381537701,17.0,21.125,21.112,30.0]
[1680381538098,17.0,21.125,21.111,20.0]
[1680381539608,10.0,21.124,21.111,20.0]
[1680381539812,17.0,21.123,21.111,20.0]
[1680381541717,26.68,21.12,21.104,18.948052]
[1680381541894,17.0,21.119,21.104,18.948052]
[1680381542513,10.0,21.118,21.104,18.948052]
[1680381542712,17.0,21.117,21.104,18.948052]
[1680381542895,10.0,21.118,21.104,18.948052]
[1680381543389,17.0,21.117,21.104,18.948052]
[1680381543594,10.0,21.116,21.104,18.948052]
[1680381544201,10.0,21.114,21.104,18.948052]
[1680381544807,10.0,21.116,21.104,18.948052]
[1680381545006,17.0,21.115,21.104,18.948052]
[1680381545712,10.0,21.119,21.104,18.948052]
[1680381545920,17.0,21.118,21.104,18.948052]
[1680381546515,10.0,21.117,21.104,18.948052]
[1680381547321,17.0,21.116,21.104,18.948052]
[1680381548202,10.0,21.117,21.104,18.948052]
[1680381548402,17.0,21.116,21.104,18.948052]
[1680381549311,10.0,21.115,21.104,18.948052]
[1680381549506,17.0,21.114,21.104,18.948052]
[1680381552599,17.0,21.114,21.1,10.0]
[1680381552915,17.0,21.114,21.101,20.0]
[1680381553093,17.0,21.114,21.102,10.0]
[1680381553298,112.3977,21.116,21.102,10.0]
[1680381554198,10.0,21.115,21.102,10.0]
[1680381555119,10.0,21.115,21.101,20.0]
[1680381555618,10.0,21.115,21.102,10.0]
[1680381557019,112.3977,21.116,21.102,10.0]
[1680381557620,10.0,21.13,21.103,17.0]
[1680381557806,142.1625,21.12,21.104,10.0]
[1680381558120,10.0,21.119,21.104,10.0]
[1680381558912,17.0,21.118,21.104,10.0]
[1680381559409,10.0,21.117,21.104,10.0]
[1680381559916,17.0,21.116,21.104,10.0]
[1680381560108,10.0,21.117,21.104,10.0]
[1680381560428,10.0,21.119,21.104,10.0]
[1680381560922,10.0,21.117,21.104,10.0]
[1680381561313,10.0,21.119,21.105,17.0]
[1680381561813,10.0,21.119,21.106,10.0]
[1680381562019,142.1625,21.12,21.106,10.0]
[1680381562727,10.0,21.119,21.106,10.0]
[1680381564537,10.0,21.119,21.102,10.0]
[1680381564718,17.0,21.118,21.103,30.0]
[1680381564921,10.0,21.117,21.103,30.0]
[1680381565427,17.0,21.116,21.103,30.0]
[1680381565626,10.0,21.117,21.103,30.0]
[1680381565805,10.0,21.117,21.104,17.0]
[1680381566215,10.0,21.117,21.103,10.0]
[1680381566414,10.0,21.117,21.104,17.0]
[1680381567024,10.0,21.117,21.103,10.0]
[1680381567326,10.0,21.115,21.103,10.0]
[1680381569415,10.0,21.115,21.102,10.0]
[1680381573035,17.0,21.116,21.102,10.0]
[1680381576031,120.8019,21.119,21.102,10.0]
[1680381576333,17.0,21.118,21.102,10.0]
[1680381576631,10.0,21.117,21.102,10.0]
[1680381579422,10.0,21.117,21.101,20.0]
[1680381579733,10.0,21.117,21.102,47.0]
[1680381579935,10.0,21.117,21.103,10.0]
[1680381580121,10.0,21.117,21.105,10.0]
[1680381580318,10.0,21.117,21.102,30.0]
[1680381580545,20.0,21.116,21.098,137.484751]
[1680381581041,10.0,21.114,21.099,10.0]
[1680381581228,20.0,21.113,21.099,10.0]
[1680381581721,17.0,21.112,21.099,10.0]
[1680381581921,20.0,21.111,21.099,10.0]
[1680381582424,20.0,21.111,21.098,137.484751]
[1680381583437,20.0,21.111,21.099,10.0]
[1680381584135,20.0,21.111,21.098,137.484751]
[1680381585023,36.43,21.11,21.098,137.484751]
[1680381585225,17.0,21.109,21.098,137.484751]
[1680381585728,26.43,21.11,21.099,10.0]
[1680381586538,26.43,21.11,21.098,18.952051]
[1680381586837,17.0,21.109,21.098,18.952051]
[1680381587022,10.0,21.108,21.098,18.952051]
[1680381590546,20.0,21.107,21.098,18.952051]
[1680381592022,20.0,21.107,21.092,10.0]
[1680381592227,20.0,21.107,21.093,17.0]
[1680381592835,20.0,21.107,21.094,10.0]
[1680381593237,20.0,21.108,21.094,10.0]
[1680381593437,20.0,21.108,21.095,17.0]
[1680381593947,20.0,21.108,21.096,10.0]
[1680381594632,117.2165,21.109,21.096,10.0]
[1680381596649,117.2165,21.109,21.097,17.0]
[1680381596843,117.2165,21.109,21.098,10.0]
[1680381599150,117.2165,21.109,21.096,10.0]
[1680381600354,117.2165,21.109,21.094,10.0]
[1680381600850,10.0,21.108,21.094,10.0]
[1680381602645,117.2165,21.109,21.094,10.0]
[1680381602948,117.2165,21.109,21.095,17.0]
[1680381603744,117.2165,21.109,21.096,10.0]
[1680381603951,117.2165,21.109,21.097,17.0]
[1680381604145,117.2165,21.109,21.096,10.0]
[1680381604849,27.0,21.108,21.096,10.0]
[1680381605154,27.0,21.108,21.094,10.0]
[1680381606650,117.2165,21.109,21.094,10.0]
[1680381606947,117.2165,21.109,21.096,10.0]
[1680381607857,27.0,21.108,21.092,10.0]
[1680381608045,141.9984,21.108,21.092,10.0]
[1680381608944,124.9984,21.108,21.092,10.0]
[1680381609143,17.0,21.107,21.092,10.0]
[1680381613661,10.0,21.106,21.092,10.0]
[1680381615947,17.0,21.107,21.092,10.0]
[1680381620957,17.0,21.107,21.091,10.0]
[1680381621168,10.0,21.106,21.091,10.0]
[1680381621359,17.0,21.105,21.091,10.0]
[1680381623968,10.0,21.106,21.091,10.0]
[1680381624168,17.0,21.105,21.091,10.0]
[1680381627866,124.9984,21.108,21.091,10.0]
[1680381627867,10.0,21.106,21.091,10.0]
[1680381628072,114.9984,21.108,21.093,10.0]
[1680381629060,114.9984,21.108,21.091,10.0]
[1680381629264,17.0,21.107,21.091,10.0]
[1680381629464,10.0,21.106,21.091,10.0]
[1680381629665,17.0,21.105,21.091,10.0]
[1680381630970,114.9984,21.108,21.091,10.0]
[1680381631160,17.0,21.107,21.091,10.0]
[1680381631469,10.0,21.106,21.091,10.0]
[1680381639863,17.0,21.105,21.091,10.0]
[1680381641768,10.0,21.106,21.091,10.0]
[1680381642572,17.0,21.105,21.087,18.962866]
[1680381642779,20.0,21.104,21.087,18.962866]
[1680381642968,10.0,21.102,21.088,10.0]
[1680381643275,20.0,21.101,21.088,10.0]
[1680381643475,37.0,21.101,21.088,10.0]
[1680381655591,20.0,21.101,21.088,10.0]
[1680381655793,10.0,21.104,21.088,10.0]
[1680381656092,37.0,21.103,21.088,10.0]
[1680381661803,10.0,21.102,21.088,7.5]
[1680381661995,20.0,21.101,21.088,7.5]
[1680381663794,20.0,21.101,21.087,10.0]
[1680381664097,20.0,21.101,21.088,17.0]
[1680381664797,20.0,21.101,21.089,10.0]
[1680381664999,20.0,21.105,21.09,17.0]
[1680381665183,10.0,21.104,21.091,10.0]
[1680381665496,20.0,21.103,21.092,17.0]
[1680381666086,10.0,21.102,21.089,10.0]
[1680381666292,37.0,21.101,21.088,10.0]
[1680381668493,20.0,21.101,21.088,10.0]
[1680381668997,20.0,21.103,21.089,17.0]
[1680381669185,20.0,21.103,21.09,10.0]
[1680381669380,20.0,21.103,21.091,17.0]
[1680381670092,20.0,21.107,21.092,10.0]
[1680381670293,20.0,21.107,21.093,17.0]
[1680381670600,20.0,21.107,21.094,10.0]
[1680381670988,10.0,21.106,21.094,10.0]
[1680381671189,20.0,21.105,21.094,10.0]
[1680381672800,20.0,21.105,21.092,10.0]
[1680381673898,10.0,21.104,21.092,10.0]
[1680381674107,20.0,21.103,21.09,10.0]
[1680381675201,20.0,21.105,21.09,10.0]
[1680381675404,114.9984,21.108,21.091,37.0]
[1680381675902,117.2165,21.109,21.092,112.62691163]
[1680381676102,117.2165,21.109,21.093,27.0]
[1680381676690,117.2165,21.109,21.094,9.5]
[1680381677005,117.2165,21.109,21.096,10.0]
[1680381677497,117.2165,21.109,21.097,17.0]
[1680381678102,117.2165,21.109,21.098,10.0]
[1680381690118,114.7165,21.109,21.098,10.0]
[1680381694819,114.7165,21.109,21.099,17.0]
[1680381695127,114.7165,21.109,21.1,10.0]
[1680381695418,117.4519,21.119,21.101,37.0]
[1680381695817,117.4519,21.119,21.102,10.0]
[1680381696023,117.4519,21.119,21.103,17.0]
[1680381696418,117.4519,21.119,21.104,10.0]
[1680381696618,117.4519,21.119,21.106,10.0]
[1680381697109,117.4519,21.119,21.107,17.0]
[1680381697307,117.4519,21.119,21.106,10.0]
[1680381701230,117.4519,21.119,21.102,10.0]
[1680381701410,27.0,21.118,21.102,10.0]
[1680381701729,27.0,21.118,21.101,30.0]
[1680381702104,27.0,21.118,21.102,10.0]
[1680381702303,27.0,21.118,21.101,20.0]
[1680381705632,10.0,21.118,21.104,10.0]
[1680381708427,117.4519,21.119,21.104,10.0]
[1680381708632,17.0,21.118,21.104,10.0]
[1680381708815,10.0,21.117,21.104,10.0]
[1680381709234,17.0,21.118,21.104,10.0]
[1680381716143,17.0,21.118,21.102,10.0]
[1680381716323,17.0,21.118,21.103,17.0]
[1680381716641,10.0,21.117,21.102,10.0]
[1680381716829,10.0,21.117,21.103,17.0]
[1680381717030,10.0,21.117,21.104,10.0]
[1680381719540,27.0,21.118,21.104,10.0]
[1680381721429,10.0,21.117,21.103,17.0]
[1680381722922,10.0,21.117,21.102,10.0]
[1680381723243,10.0,21.117,21.104,10.0]
[1680381724052,10.0,21.117,21.101,20.0]
[1680381724247,17.0,21.116,21.101,20.0]
[1680381724545,10.0,21.115,21.101,20.0]
[1680381724721,17.0,21.114,21.101,20.0]
[1680381725449,17.0,21.114,21.102,10.0]
[1680381725742,168.7425,21.12,21.102,10.0]
[1680381725934,142.0625,21.12,21.103,17.0]
[1680381726247,142.0625,21.12,21.104,10.0]
[1680381726542,142.0625,21.12,21.106,10.0]
[1680381734251,116.4519,21.119,21.106,10.0]
[1680381734659,116.4519,21.119,21.104,10.0]
[1680381734848,116.4519,21.119,21.105,17.0]
[1680381735149,10.0,21.118,21.105,17.0]
[1680381737534,10.0,21.118,21.104,10.0]
[1680381737935,10.0,21.118,21.106,10.0]
[1680381738453,116.4519,21.119,21.106,10.0]
[1680381740757,116.4519,21.119,21.104,10.0]
[1680381740935,17.0,21.118,21.104,10.0]
[1680381741137,17.0,21.118,21.102,10.0]
[1680381741435,10.0,21.117,21.102,10.0]
[1680381741635,10.0,21.117,21.103,17.0]
[1680381741937,17.0,21.118,21.104,10.0]
[1680381743359,10.0,21.117,21.101,20.0]
[1680381743539,17.0,21.116,21.102,10.0]
[1680381745842,10.0,21.115,21.101,30.0]
[1680381746051,17.0,21.114,21.101,30.0]
[1680381746355,17.0,21.114,21.102,10.0]
[1680381747360,17.0,21.116,21.102,10.0]
[1680381751158,116.4519,21.119,21.104,10.0]
[1680381751459,10.0,21.117,21.104,10.0]
[1680381751963,27.0,21.118,21.104,10.0]
[1680381754551,17.0,21.118,21.104,10.0]
[1680381756563,17.0,21.118,21.102,10.0]
[1680381756766,10.0,21.117,21.102,10.0]
[1680381757065,17.0,21.116,21.102,10.0]
[1680381757869,10.0,21.117,21.102,10.0]
[1680381758055,116.4519,21.119,21.104,10.0]
[1680381758260,17.0,21.118,21.104,10.0]
[1680381758452,10.0,21.117,21.104,10.0]
[1680381761175,17.0,21.118,21.104,10.0]
[1680381770174,116.4519,21.119,21.104,10.0]
[1680381770379,17.0,21.118,21.104,10.0]
[1680381773770,116.4519,21.119,21.106,10.0]
[1680381787190,116.4519,21.119,21.106,7.5]
[1680381787477,10.0,21.118,21.106,7.5]
[1680381787682,116.4519,21.119,21.106,7.5]
[1680381793280,116.4519,21.119,21.104,10.0]
[1680381793584,10.0,21.118,21.104,10.0]
[1680381793768,10.0,21.118,21.105,17.0]
[1680381793970,17.0,21.117,21.102,10.0]
[1680381794167,10.0,21.116,21.102,10.0]
[1680381794364,17.0,21.115,21.102,10.0]
[1680381794581,10.0,21.116,21.102,10.0]
[1680381795087,10.0,21.118,21.102,10.0]
[1680381795267,17.0,21.117,21.104,10.0]
[1680381795879,17.0,21.117,21.102,10.0]
[1680381796093,10.0,21.116,21.102,10.0]
[1680381796582,17.0,21.117,21.102,10.0]
[1680381798581,10.0,21.116,21.102,10.0]
[1680381798883,17.0,21.115,21.102,10.0]
[1680381799886,10.0,21.118,21.104,10.0]
[1680381800088,10.0,21.116,21.104,10.0]
[1680381800789,17.0,21.115,21.102,10.0]
[1680381804791,17.0,21.115,21.101,20.0]
[1680381804981,17.0,21.115,21.1,10.0]
[1680381805180,17.0,21.115,21.101,20.0]
[1680381805387,17.0,21.115,21.102,10.0]
[1680381806782,17.0,21.117,21.102,10.0]
[1680381807393,10.0,21.116,21.101,20.0]
[1680381807584,10.0,21.116,21.102,10.0]
[1680381807784,17.0,21.115,21.102,10.0]
[1680381809996,17.0,21.115,21.101,20.0]
[1680381811195,17.0,21.115,21.102,10.0]
[1680381812597,17.0,21.115,21.101,20.0]
[1680381812780,17.0,21.115,21.101,10.0]
[1680381817599,17.0,21.117,21.101,10.0]
[1680381817806,10.0,21.116,21.101,10.0]
[1680381817984,17.0,21.115,21.101,10.0]
[1680381820713,10.0,21.116,21.101,10.0]
[1680381821003,17.0,21.115,21.101,10.0]
[1680381825099,10.0,21.116,21.101,10.0]
[1680381825300,17.0,21.115,21.101,10.0]
[1680381827098,10.0,21.118,21.101,10.0]
[1680381827298,17.0,21.117,21.101,10.0]
[1680381828410,10.0,21.116,21.101,10.0]
[1680381828702,17.0,21.115,21.101,10.0]
[1680381830306,10.0,21.114,21.1,20.0]
[1680381830503,17.0,21.113,21.1,20.0]
[1680381830697,17.0,21.113,21.101,10.0]
[1680381831310,17.0,21.115,21.101,10.0]
[1680381831810,116.4519,21.119,21.102,17.0]
[1680381832304,116.4519,21.119,21.103,10.0]
[1680381833208,17.0,21.118,21.103,10.0]
[1680381836111,116.4519,21.119,21.103,10.0]
[1680381836294,115.4625,21.12,21.104,17.0]
[1680381837011,115.4625,21.12,21.105,10.0]
[1680381837219,136.6725,21.12,21.105,10.0]
[1680381837789,136.6725,21.12,21.107,10.0]
[1680381838211,17.0,21.119,21.107,10.0]
[1680381844514,17.0,21.119,21.105,10.0]
[1680381848804,10.0,21.118,21.105,10.0]
[1680381849005,17.0,21.117,21.105,10.0]
[1680381850022,17.0,21.119,21.105,10.0]
[1680381855224,17.0,21.119,21.1,10.0]
[1680381855427,27.16059946,21.118,21.1,10.0]
[1680381855625,10.0,21.116,21.1,10.0]
[1680381855824,37.0,21.115,21.1,10.0]
[1680381856310,7.16059946,21.117,21.101,20.0]
[1680381856511,115.0865,21.123,21.102,17.0]
[1680381857017,115.0865,21.123,21.103,10.0]
[1680381857922,17.0,21.119,21.103,10.0]
[1680381858316,115.0865,21.123,21.103,10.0]
[1680381858513,115.4625,21.12,21.104,17.0]
[1680381858918,115.4625,21.12,21.105,10.0]
[1680381859229,115.4625,21.12,21.107,10.0]
[1680381859621,115.4625,21.12,21.109,10.0]
[1680381863035,115.4625,21.12,21.107,10.0]
[1680381863220,17.0,21.119,21.107,10.0]
[1680381863426,115.4625,21.12,21.107,10.0]
[1680381863618,17.0,21.119,21.107,10.0]
[1680381863818,115.4625,21.12,21.107,10.0]
[1680381870740,115.4625,21.12,21.109,10.0]
[1680381887658,115.4625,21.12,21.111,10.0]
[1680381888155,115.4625,21.12,21.109,10.0]
[1680381890157,115.4625,21.12,21.107,24.21725337]
[1680381896248,17.0,21.119,21.107,24.21725337]
[1680381897058,115.4625,21.12,21.107,24.21725337]
[1680381899466,115.4625,21.12,21.109,10.0]
[1680381903874,115.4625,21.12,21.107,24.21725337]
[1680381907353,115.4625,21.12,21.109,10.0]
[1680381907558,115.4625,21.12,21.11,17.0]
[1680381907765,115.4625,21.12,21.111,10.0]
[1680381908673,115.4625,21.12,21.109,10.0]
[1680381909782,115.4625,21.12,21.11,17.0]
[1680381909985,115.4625,21.12,21.111,10.0]
[1680381914884,115.4625,21.12,21.112,17.0]
[1680381915069,115.4625,21.12,21.113,10.0]
[1680381921886,115.4625,21.12,21.112,17.0]
[1680381925099,115.4625,21.12,21.109,10.0]
[1680381925274,115.4625,21.12,21.11,17.0]